Cogmind - Beta 10.2 @@@ ROGUE MODE // 2020.11.12 @ 23:41:43 // Halloween2020/ForbiddenLore Player: albenzo Result: Destroyed by MZ-NA4(g) with Particle Gun Performance ------------- Evolutions (5) 2500 Regions Visited (16) 3200 Robots Destroyed (43) 215 Value Destroyed (1334) 1334 Prototype IDs (18) 360 Alien Tech Used (0) 0 Bonus (1388) 1388 TOTAL SCORE: 8997 Bonus ------- High Alert Combat Kills 43 Follower Combat Kills 45 Entered Garrisons 200 Used RIF Installer 500 Aligned with FarCom 300 Met Data Miner 300 Cogmind --------- Core Integrity 0/1000 Matter 203/300 Energy 100/100 System Corruption 14% Temperature Cool (9) Movement Core (50) Location -5/Warlord Parts ------- > --- POWER (1) -------- (None) > --- PROPULSION (6) --- (None) > --- UTILITY (8) ------ Advanced Terrain Scan Processor > --- WEAPON (2) ------- (None) > --- INVENTORY (4) ---- Transmission Jammer Advanced ECM Suite Makeshift Cloaking Device Improved Medium Armor Plating Peak State ------------ > --- POWER ------------ Micro Fission Core > --- PROPULSION ------- Experimental Flexi-carbon Leg Experimental Flexi-carbon Leg Nuclear Pulse Thruster Nuclear Pulse Thruster Nuclear Pulse Thruster Nuclear Pulse Thruster > --- UTILITY ---------- High-capacity Storage Unit Improved Signal Interpreter Long-range Terrain Scanner Advanced Terrain Scan Processor Target Analyzer Improved Hacking Suite System Shield Trap Reconfigurator > --- WEAPON ----------- Autogun Flak Gun > --- INVENTORY -------- Light Angular Momentum Engine Light Angular Momentum Engine Nuclear Pulse Thruster Nuclear Pulse Thruster Nuclear Pulse Thruster Advanced Cooling System Transmission Jammer Advanced ECM Suite Improved Medium Armor Plating Improved Powered Armor Flak Gun Heavy Rocket Launcher [Rating: 84] Favorites ----------- Power Light Angular Momentum Engine Engine Light Angular Momentum Engine Power Core Micro Fission Core Propulsion Improved Treads Treads Improved Treads Leg Flexi-carbon Leg Wheel Armored Wheel Flight Unit VTOL Module Utility Trap Reconfigurator Device Trap Reconfigurator Storage High-capacity Storage Unit Processor Core Analyzer Hackware Improved Hacking Suite Protection Light Armor Plating Weapon Light Assault Rifle Ballistic Gun Light Assault Rifle Launcher Heavy Rocket Launcher Special Weapon Molecular Deconstructor Build | -11 -10 -10 -10 -9 -8 -7 -7 -7 -7 -7 -6 -6 -5 -5 -5 -5 ------- Run | Scr Mat Min Exi Min Mat Fac Gar Fac Low Dat Pro Fac Fac Upp Upp War Slots Evolved 10 | . . . . . 4 2 . . . . . 2 2 . . . Power . | . . . . . . . . . . . . . . . . . Propulsion 4 | . . . . . 2 . . . . . . 2 . . . . Utility 6 | . . . . . 2 2 . . . . . . 2 . . . Weapon . | . . . . . . . . . . . . . . . . . Parts Attached 114 | 6 4 3 6 . 12 2 28 11 . . 2 14 10 4 4 8 Power 11 | 1 . 1 . . 1 . 3 1 . . . 2 1 . . 1 Engine 9 | 1 . 1 . . 1 . 2 1 . . . 2 . . . 1 Core 2 | . . . . . . . 1 . . . . . 1 . . . Reactor . | . . . . . . . . . . . . . . . . . Propulsion 40 | 2 2 . . . 2 . 11 2 . . 1 8 7 2 . 3 Treads 7 | . 2 . . . 2 . 3 . . . . . . . . . Leg 14 | 2 . . . . . . . . . . 1 7 1 1 . 2 Wheel 2 | . . . . . . . 1 . . . . 1 . . . . Hover . | . . . . . . . . . . . . . . . . . Flight 17 | . . . . . . . 7 2 . . . . 6 1 . 1 Utility 42 | 1 2 1 6 . 7 2 7 6 . . . 2 2 1 3 2 Device 14 | . . . 4 . 2 1 . 1 . . . . . 1 3 2 Storage 13 | 1 1 1 1 . 5 . 3 . . . . 1 . . . . Processor 10 | . . . 1 . . 1 2 5 . . . . 1 . . . Hackware 2 | . . . . . . . . . . . . 1 1 . . . Protection 3 | . 1 . . . . . 2 . . . . . . . . . Artifact . | . . . . . . . . . . . . . . . . . Weapon 21 | 2 . 1 . . 2 . 7 2 . . 1 2 . 1 1 2 Energy Gun . | . . . . . . . . . . . . . . . . . Energy Cannon . | . . . . . . . . . . . . . . . . . Ballistic Gun 17 | 2 . 1 . . 2 . 7 2 . . . 2 . . . 1 Ballistic Cannon . | . . . . . . . . . . . . . . . . . Launcher 3 | . . . . . . . . . . . 1 . . 1 1 . Special Weapon 1 | . . . . . . . . . . . . . . . . 1 Impact Weapon . | . . . . . . . . . . . . . . . . . Slashing Weapon . | . . . . . . . . . . . . . . . . . Piercing Weapon . | . . . . . . . . . . . . . . . . . Special Melee Weapon . | . . . . . . . . . . . . . . . . . Unidentified Prototypes 4 | . . . 3 . . . . . . . . . . . . 1 Parts Lost 40 | . . . . . 1 . 14 . . . 3 . . 4 . 18 Power 2 | . . . . . . . 1 . . . . . . . . 1 Propulsion 21 | . . . . . . . 8 . . . 3 . . 1 . 9 Utility 11 | . . . . . . . 2 . . . . . . 3 . 6 Weapon 6 | . . . . . 1 . 3 . . . . . . . . 2 Highest Loss Streak 18 | . . . . . 1 . 10 . . . 2 . . 3 . 18 Average Slot Usage (%) 93 | . 98 100 99 100 98 84 87 98 100 100 85 88 99 85 93 70 Engine 7 | . 14 14 14 14 8 7 6 5 7 7 6 5 4 . . . Treads 11 | . 13 28 28 28 36 30 17 . . . . . . . . . Leg 8 | . 14 . . . . . . . . . . 28 32 . . 3 Wheel 1 | . . . . . . . 2 . . . . 4 . . . . Flight 9 | . . . . . . . 6 29 30 30 23 2 2 33 35 19 Device 11 | . . . 8 14 14 15 17 14 15 15 15 13 11 6 16 11 Storage 9 | . 22 22 19 14 21 15 11 . . . . . 5 5 5 4 Processor 13 | . . . . . . . 7 30 30 30 30 25 17 11 11 10 Hackware 1 | . . . . . . . . . . . . . 10 11 11 10 Ballistic Gun 14 | . 28 28 28 28 18 15 13 14 15 15 8 4 11 5 5 2 Naked Turns . | . . . . . . . . . . . . . . . . . Heaviest Build 93 | 12 15 20 45 45 93 79 80 20 20 20 20 51 51 51 51 47 Greatest Support 122 | 20 46 46 46 46 92 92 92 20 20 20 20 122 122 48 45 46 Greatest Overweight (x) 6 | . . . . . 1 . 5 . . . 2 . 6 1 1 1 Average Overweight (x) . | . . . . . . . . . . . . . . . . . Largest Inventory Capacity 28 | 6 6 8 12 12 28 20 20 4 4 4 4 12 12 12 12 12 Average Capacity 9 | 5 6 7 7 12 21 20 13 4 4 4 4 5 12 12 12 10 Most Carried 20 | 6 6 7 9 9 20 20 19 4 4 4 4 12 12 12 12 12 Average Carried 7 | 3 5 6 6 9 15 19 11 3 4 4 3 4 11 11 10 9 Final Capacity 20 | 6 6 8 12 12 20 20 4 4 4 4 4 12 12 12 12 4 Final Carried 20 | 6 6 7 9 9 20 18 2 4 4 4 4 12 12 12 12 4 Class Distribution -------------------- 40% | Mutant 15% | Hauler-Mutant 7% | Scavenger-Scout 6% | Skirmisher 6% | Hacker-Skirmisher 5% | Scavenger-Mutant 4% | Hacker-Mutant 4% | Hacker-Sprinter 4% | Scavenger-Sprinter 3% | Scavenger-Skirmisher Dominant Class ---------------- Mutant | -10/Materials Mutant | -10/Mines Mutant | -10/Exiles Mutant | -9/Mines Hauler-Mutant | -8/Materials Hauler-Mutant | -7/Factory Hauler-Mutant | -7/Garrison Scavenger-Scout | -7/Factory Scavenger-Scout | -7/Lower Caves Scavenger-Sprinter | -7/Data Miner Scavenger-Mutant | -6/Proximity Caves Mutant | -6/Factory Hacker-Skirmisher | -5/Factory Hacker-Mutant | -5/Upper Caves Hacker-Mutant | -5/Upper Caves Hacker-Mutant | -5/Warlord Resources | -11 -10 -10 -10 -9 -8 -7 -7 -7 -7 -7 -6 -6 -5 -5 -5 -5 ----------- Run | Scr Mat Min Exi Min Mat Fac Gar Fac Low Dat Pro Fac Fac Upp Upp War Matter Collected 1917 | 189 15 201 . 14 338 . 345 27 . . 217 149 86 251 85 . Remotely . | . . . . . . . . . . . . . . . . . Salvage Created 1425 | . 45 201 . . 398 . 374 . . . 33 149 86 139 . . Parts 86 | . 4 18 . . 17 . 19 . . . 6 10 5 7 . . Haulers Intercepted . | . . . . . . . . . . . . . . . . . Recyclers Shooed 3 | . . 1 . . 2 . . . . . . . . . . . Parts Field Recycled . | . . . . . . . . . . . . . . . . . Retrieved Matter . | . . . . . . . . . . . . . . . . . Parts Self-Destructed 11 | . . . . . . . . . . . 5 . . 6 . . Prevented . | . . . . . . . . . . . . . . . . . Kills | -11 -10 -10 -10 -9 -8 -7 -7 -7 -7 -7 -6 -6 -5 -5 -5 -5 ------- Run | Scr Mat Min Exi Min Mat Fac Gar Fac Low Dat Pro Fac Fac Upp Upp War Combat Hostiles Destroyed 38 | . 3 6 . . 5 . 9 . . . 4 3 1 7 . . Guns 28 | . 3 6 . . 5 . 9 . . . . 3 1 1 . . AOE 10 | . . . . . . . . . . . 4 . . 6 . . Classes Destroyed 11 | . 1 2 . . 5 . 1 . . . . . . 2 . . Worker 1 | . . . . . 1 . . . . . . . . . . . Tunneler 1 | . . 1 . . . . . . . . . . . . . . Recycler 2 | . . 1 . . 1 . . . . . . . . . . . Watcher 1 | . . . . . 1 . . . . . . . . . . . Swarmer 22 | . 3 6 . . . . 4 . . . 4 . . 5 . . Grunt 5 | . . . . . 2 . 3 . . . . . . . . . Brawler 1 | . . . . . 1 . . . . . . . . . . . Sentry 5 | . . . . . 2 . 1 . . . . 1 1 . . . Hunter 2 | . . . . . . . . . . . . . . 2 . . Programmer 3 | . . . . . . . 1 . . . . 2 . . . . Samaritan 1 | . . . . . . . . . . . . . . 1 . . Best Kill Streak 5 | . 3 4 . . 3 . 4 . . . 4 2 1 5 . . Combat Bots Only 5 | . 3 3 . . 2 . 4 . . . 4 2 1 5 . . Max Kills in Single Turn 5 | . 1 1 . . 1 . 1 . . . 3 1 1 5 . . Gunslinging . | . . . . . . . . . . . . . . . . . Exploded 4 | . . . . . . . . . . . 3 . . 4 . . Melee . | . . . . . . . . . . . . . . . . . Uniques/NPCs Destroyed . | . . . . . . . . . . . . . . . . . Combat | -11 -10 -10 -10 -9 -8 -7 -7 -7 -7 -7 -6 -6 -5 -5 -5 -5 -------- Run | Scr Mat Min Exi Min Mat Fac Gar Fac Low Dat Pro Fac Fac Upp Upp War Damage Taken 6070 | . 94 250 . . 470 . 1942 . . . 193 559 139 331 24 2068 Core 1483 | . 6 46 . . 33 . 306 . . . 34 58 25 59 22 894 Absorbed by Shields 10 | . . . . . . . 10 . . . . . . . . . Core Remaining (%) 83 | 100 . . . 79 94 . . . . . 51 93 . . . . Volleys Fired 138 | . 9 23 . . 34 . 41 . . . 3 13 5 7 1 2 Largest 2 | . 2 2 . . 2 . 2 . . . 1 2 2 2 2 1 Hottest 67 | . 40 40 . . 43 . 56 . . . 39 51 51 67 67 28 Shots Fired 260 | . 18 46 . . 68 . 72 . . . 3 25 10 14 2 2 Gun 249 | . 18 46 . . 68 . 72 . . . . 25 10 7 1 2 Cannon . | . . . . . . . . . . . . . . . . . Launcher 11 | . . . . . . . . . . . 3 . . 7 1 . Special . | . . . . . . . . . . . . . . . . . Kinetic 249 | . 18 46 . . 68 . 72 . . . . 25 10 7 1 2 Thermal . | . . . . . . . . . . . . . . . . . Explosive 11 | . . . . . . . . . . . 3 . . 7 1 . Electromagnetic . | . . . . . . . . . . . . . . . . . Robot Hit Streak 13 | . 4 7 . . 12 . 13 . . . 3 5 11 4 . 3 Robot Miss Streak 9 | . 2 4 . . 3 . 3 . . . 1 9 1 5 . 3 Penetration Max . | . . . . . . . . . . . . . . . . . Secondary Targets 4 | . . 2 . . 2 . . . . . . . . . . . Max Gunslinging Chain 1 | . . 1 . . 1 . . . . . . . . . . . Shots Hit Robots 176 | . 11 27 . . 50 . 51 . . . 2 15 8 10 . 2 Core Hits 99 | . 5 10 . . 18 . 20 . . . 5 15 9 16 . 1 Critical Hits 1 | . . . . . 1 . . . . . . . . . . . Critical Kills . | . . . . . . . . . . . . . . . . . Critical Parts Destroyed 1 | . . . . . 1 . . . . . . . . . . . Melee Attacks . | . . . . . . . . . . . . . . . . . Impact . | . . . . . . . . . . . . . . . . . Slashing . | . . . . . . . . . . . . . . . . . Piercing . | . . . . . . . . . . . . . . . . . Sneak Attacks . | . . . . . . . . . . . . . . . . . Combat Hostiles . | . . . . . . . . . . . . . . . . . Follow-up Attacks . | . . . . . . . . . . . . . . . . . Damage Inflicted 3299 | . 91 259 . . 581 . 698 . . . 352 355 152 782 . 29 Guns 2183 | . 91 259 . . 546 . 698 . . . . 355 152 61 . 21 Cannons . | . . . . . . . . . . . . . . . . . Explosions 1073 | . . . . . . . . . . . 352 . . 721 . . Melee . | . . . . . . . . . . . . . . . . . Ramming 43 | . . . . . 35 . . . . . . . . . . 8 Kinetic 2183 | . 91 259 . . 546 . 698 . . . . 355 152 61 . 21 Thermal . | . . . . . . . . . . . . . . . . . Explosive 1073 | . . . . . . . . . . . 352 . . 721 . . Electromagnetic . | . . . . . . . . . . . . . . . . . Impact . | . . . . . . . . . . . . . . . . . Slashing . | . . . . . . . . . . . . . . . . . Piercing . | . . . . . . . . . . . . . . . . . Highest Corruption 14 | . . . . . . . . . . . . 3 . . . 14 Average Corruption 3 | . . . . . . . . . . . . 2 . . . 4 Corruption Purged . | . . . . . . . . . . . . . . . . . Effects 8 | . . . . . . . . . . . . 7 . . . 1 Message Errors 1 | . . . . . . . . . . . . 1 . . . . Matter Fused 2 | . . . . . . . . . . . . 2 . . . . Heat Flow Errors 1 | . . . . . . . . . . . . . . . . 1 Data Loss (minor) 2 | . . . . . . . . . . . . 2 . . . . Targeting Errors 1 | . . . . . . . . . . . . 1 . . . . Weapon Failures 1 | . . . . . . . . . . . . 1 . . . . Overload Shots . | . . . . . . . . . . . . . . . . . Overflow Damage 64 | . . . . . 12 . . . . . 38 . . 14 . . Projectiles . | . . . . . . . . . . . . . . . . . Explosions 52 | . . . . . . . . . . . 38 . . 14 . . Melee 12 | . . . . . 12 . . . . . . . . . . . Knockbacks . | . . . . . . . . . . . . . . . . . Impact . | . . . . . . . . . . . . . . . . . Kinetic . | . . . . . . . . . . . . . . . . . Secondary . | . . . . . . . . . . . . . . . . . Self-Inflicted Damage 9 | . . . . . . . . . . . . . . . 5 4 Shots 1 | . . . . . . . . . . . . . . . 1 . Rammed 2 | . . . . . 1 . . . . . . . . . . 1 Targets Rammed 2 | . . . . . 1 . . . . . . . . . . 1 Kicked . | . . . . . . . . . . . . . . . . . Crushed . | . . . . . . . . . . . . . . . . . Highest Temperature 719 | . . 15 . . 5 . 22 . . . . . 24 33 27 719 Average Temperature 30 | . . 5 . . 3 . 12 . . . . . 10 10 10 159 Received Heat Transfer 708 | . . 18 . . 207 . 297 . . . . 60 27 9 . 90 Effects 2 | . . . . . . . . . . . . . . . . 2 Shutdowns 1 | . . . . . . . . . . . . . . . . 1 Matter Decay 1 | . . . . . . . . . . . . . . . . 1 Siege Activations . | . . . . . . . . . . . . . . . . . Robots Corrupted . | . . . . . . . . . . . . . . . . . Combat Hostiles . | . . . . . . . . . . . . . . . . . Parts Fried 2 | . . . . . 2 . . . . . . . . . . . Impact Corruptions 2 | . . . . . 2 . . . . . . . . . . . Robots Melted . | . . . . . . . . . . . . . . . . . Combat Hostiles . | . . . . . . . . . . . . . . . . . Parts Melted . | . . . . . . . . . . . . . . . . . Heat Transferred . | . . . . . . . . . . . . . . . . . Parts Sabotaged . | . . . . . . . . . . . . . . . . . Parts Stolen . | . . . . . . . . . . . . . . . . . Parts Stripped . | . . . . . . . . . . . . . . . . . Power Chain Reactions . | . . . . . . . . . . . . . . . . . Missiles Intercepted . | . . . . . . . . . . . . . . . . . Alert | -11 -10 -10 -10 -9 -8 -7 -7 -7 -7 -7 -6 -6 -5 -5 -5 -5 ------- Run | Scr Mat Min Exi Min Mat Fac Gar Fac Low Dat Pro Fac Fac Upp Upp War Peak Influence 505 | . 105 150 . . 157 23 215 157 . . . 505 252 . . . Initial 199 | . . 40 . . . 23 25 112 . . . 70 199 . . . Average 118 | . 62 111 . . 48 23 125 56 . . . 195 203 . . . Maximum Alert Level 2 | . . . . . . . 1 . . . . 2 1 . . . Low Security (%) 82 | 100 100 100 . 100 100 100 76 100 . . . 63 45 . . . Level 1 8 | . . . . . . . 23 . . . . 2 54 . . . Level 2 9 | . . . . . . . . . . . . 33 . . . . Level 3 . | . . . . . . . . . . . . . . . . . Level 4 . | . . . . . . . . . . . . . . . . . Level 5 . | . . . . . . . . . . . . . . . . . High Security . | . . . . . . . . . . . . . . . . . Max Security . | . . . . . . . . . . . . . . . . . Squads Dispatched 4 | . . . . . 1 . . . . . . 3 . . . . Investigation . | . . . . . . . . . . . . . . . . . Extermination 2 | . . . . . . . . . . . . 2 . . . . Reinforcement 1 | . . . . . 1 . . . . . . . . . . . Assault 1 | . . . . . . . . . . . . 1 . . . . Garrison . | . . . . . . . . . . . . . . . . . Intercept . | . . . . . . . . . . . . . . . . . Construction Impeded . | . . . . . . . . . . . . . . . . . Haulers Reinforced . | . . . . . . . . . . . . . . . . . Stealth | -11 -10 -10 -10 -9 -8 -7 -7 -7 -7 -7 -6 -6 -5 -5 -5 -5 --------- Run | Scr Mat Min Exi Min Mat Fac Gar Fac Low Dat Pro Fac Fac Upp Upp War Distress Signals 4 | . 1 . . . 1 . . 1 . . . . 1 . . . Communications Jammed . | . . . . . . . . . . . . . . . . . Distress Signals . | . . . . . . . . . . . . . . . . . Times Spotted 108 | . 5 8 . . 12 . 16 4 . . 10 4 2 10 2 35 Peak Tracking Total 37 | . 4 3 . . 5 . 5 3 . . 8 3 2 5 1 37 Tactical Retreats 11 | . . 2 . . 1 . 4 1 . . 1 . . . 2 . Traps | -11 -10 -10 -10 -9 -8 -7 -7 -7 -7 -7 -6 -6 -5 -5 -5 -5 ------- Run | Scr Mat Min Exi Min Mat Fac Gar Fac Low Dat Pro Fac Fac Upp Upp War Traps Triggered 7 | . . . . . 1 . 2 . . . . 1 . . . 3 Indirectly . | . . . . . . . . . . . . . . . . . Trap Hack Attempts . | . . . . . . . . . . . . . . . . . Triggered . | . . . . . . . . . . . . . . . . . Disarmed . | . . . . . . . . . . . . . . . . . Reprogrammed . | . . . . . . . . . . . . . . . . . Reused 3 | . . . . . . . . 2 . . . 1 . . . . Traps Reconfigurated 42 | . . . . . . . 2 28 . . . 10 2 . . . Traps Extracted . | . . . . . . . . . . . . . . . . . Installed . | . . . . . . . . . . . . . . . . . Triggered 6 | . . . . . . . . 2 . . 1 1 . 2 . . Machines | -11 -10 -10 -10 -9 -8 -7 -7 -7 -7 -7 -6 -6 -5 -5 -5 -5 ---------- Run | Scr Mat Min Exi Min Mat Fac Gar Fac Low Dat Pro Fac Fac Upp Upp War Machines Disabled 1 | . . . . . . . . . . . . . . . 1 . Max in Single Turn 1 | . . . . . . . . . . . . . . . 1 . Machines Sabotaged . | . . . . . . . . . . . . . . . . . Garrisons Compromised . | . . . . . . . . . . . . . . . . . Overloaded Fab Kills . | . . . . . . . . . . . . . . . . . Fab Network Shutdowns 1 | . . . . . . . . . . . . 1 . . . . Hacking | -11 -10 -10 -10 -9 -8 -7 -7 -7 -7 -7 -6 -6 -5 -5 -5 -5 --------- Run | Scr Mat Min Exi Min Mat Fac Gar Fac Low Dat Pro Fac Fac Upp Upp War Machines Accessed 30 | . 2 2 3 . 5 1 . 6 . 4 . 5 1 . 1 . Terminals 12 | . 2 1 . . 4 . . 3 . . . 1 . . 1 . Fabricators 2 | . . . . . . . . . . . . 2 . . . . Repair Stations 4 | . . . . . 1 . . 2 . . . 1 . . . . Recycling Units 2 | . . . . . . . . 1 . . . 1 . . . . Scanalyzers 1 | . . . . . . . . . . . . . 1 . . . Garrison Access 1 | . . . . . . 1 . . . . . . . . . . Total Hacks 111 | . 5 5 26 . 10 1 . 19 . 28 . 12 4 . 1 . Successful 88 | . 3 3 26 . 5 1 . 13 . 28 . 6 2 . 1 . Failed 23 | . 2 2 . . 5 . . 6 . . . 6 2 . . . Catastrophic 5 | . . 1 . . 1 . . 1 . . . 2 . . . . Database Lockouts . | . . . . . . . . . . . . . . . . . Manual 36 | . 5 3 1 . 7 . . 10 . . . 7 . . 3 . Terminals 27 | . 5 4 . . 8 . . 8 . . . 1 . . 1 . Fabricators 7 | . . . . . . . . . . . . 7 . . . . Repair Stations 11 | . . . . . 2 . . 8 . . . 1 . . . . Recycling Units 6 | . . . . . . . . 3 . . . 3 . . . . Scanalyzers 4 | . . . . . . . . . . . . . 4 . . . Garrison Access 1 | . . . . . . 1 . . . . . . . . . . Terminal Hacks 61 | . 1 2 26 . 2 . . 1 . 28 . . . . 1 . Record 39 | . . 1 26 . . . . . . 11 . . . . 1 . Part Schematic 7 | . . . . . . . . . . 7 . . . . . . Robot Schematic 7 | . . . . . . . . . . 7 . . . . . . Prototype ID Bank 4 | . . . . . 1 . . . . 3 . . . . . . Open Door 1 | . . 1 . . . . . . . . . . . . . . Branch Access Points 2 | . 1 . . . 1 . . . . . . . . . . . Unreport Threat 1 | . . . . . . . . 1 . . . . . . . . Fabricator Hacks 3 | . . . . . . . . . . . . 3 . . . . Load Schematic 1 | . . . . . . . . . . . . 1 . . . . Build 2 | . . . . . . . . . . . . 2 . . . . Repair Station Hacks 10 | . . . . . 2 . . 8 . . . . . . . . Scan Component 5 | . . . . . 1 . . 4 . . . . . . . . Repair 5 | . . . . . 1 . . 4 . . . . . . . . Recycling Unit Hacks 1 | . . . . . . . . 1 . . . . . . . . Report Inventory 1 | . . . . . . . . 1 . . . . . . . . Scanalyzer 2 | . . . . . . . . . . . . . 2 . . . Insert Component 2 | . . . . . . . . . . . . . 2 . . . Garrison Access Hacks 1 | . . . . . . 1 . . . . . . . . . . Unlock Access 1 | . . . . . . 1 . . . . . . . . . . Unauthorized Hacks 10 | . 2 1 . . 1 . . 3 . . . 3 . . . . Terminals 5 | . 2 1 . . 1 . . 1 . . . . . . . . Track 4 | . 2 1 . . 1 . . . . . . . . . . . Assimilate 1 | . . . . . . . . 1 . . . . . . . . Fabricators 1 | . . . . . . . . . . . . 1 . . . . Siphon 1 | . . . . . . . . . . . . 1 . . . . Repair Stations . | . . . . . . . . . . . . . . . . . Recycling Units 4 | . . . . . . . . 2 . . . 2 . . . . Monitor 2 | . . . . . . . . 1 . . . 1 . . . . Recyclers 2 | . . . . . . . . 1 . . . 1 . . . . Scanalyzers . | . . . . . . . . . . . . . . . . . Garrison Access . | . . . . . . . . . . . . . . . . . Data Cores Recovered . | . . . . . . . . . . . . . . . . . Used . | . . . . . . . . . . . . . . . . . Hacking Detections 16 | . 1 1 . . 4 . . 4 . . . 4 1 . 1 . Full Trace Events . | . . . . . . . . . . . . . . . . . Feedback Events . | . . . . . . . . . . . . . . . . . Feedback Blocked . | . . . . . . . . . . . . . . . . . Robot Schematics Acquired 7 | . . . . . . . . . . 7 . . . . . . Robots Built . | . . . . . . . . . . . . . . . . . Matter . | . . . . . . . . . . . . . . . . . Time . | . . . . . . . . . . . . . . . . . Total Robot Build Rating . | . . . . . . . . . . . . . . . . . Part Schematics Acquired 7 | . . . . . . . . . . 7 . . . . . . Parts Built 2 | . . . . . . . . . . . . 2 . . . . Matter 526 | . . . . . . . . . . . . 526 . . . . Time 374 | . . . . . . . . . . . . 374 . . . . Total Part Build Rating 14 | . . . . . . . . . . . . 14 . . . . Parts Repaired 5 | . . . . . 1 . . 4 . . . . . . . . Time 190 | . . . . . 50 . . 140 . . . . . . . . Parts Recycled . | . . . . . . . . . . . . . . . . . Recycled Matter . | . . . . . . . . . . . . . . . . . Retrieved Matter . | . . . . . . . . . . . . . . . . . Retrieved Components . | . . . . . . . . . . . . . . . . . Parts Scanalyzed 1 | . . . . . . . . . . . . . 1 . . . Part Schematics Acquired . | . . . . . . . . . . . . . . . . . Parts Damaged . | . . . . . . . . . . . . . . . . . Bothacking | -11 -10 -10 -10 -9 -8 -7 -7 -7 -7 -7 -6 -6 -5 -5 -5 -5 ------------ Run | Scr Mat Min Exi Min Mat Fac Gar Fac Low Dat Pro Fac Fac Upp Upp War Used RIF Installer 1 | . . . . . . . 1 . . . . . . . . . Robots Hacked . | . . . . . . . . . . . . . . . . . Non-combat . | . . . . . . . . . . . . . . . . . Combat . | . . . . . . . . . . . . . . . . . Robot Hacks Applied . | . . . . . . . . . . . . . . . . . Relay Couplers Released . | . . . . . . . . . . . . . . . . . Robots Rewired . | . . . . . . . . . . . . . . . . . Allies Hacked . | . . . . . . . . . . . . . . . . . Hacks Repelled . | . . . . . . . . . . . . . . . . . Allies | -11 -10 -10 -10 -9 -8 -7 -7 -7 -7 -7 -6 -6 -5 -5 -5 -5 -------- Run | Scr Mat Min Exi Min Mat Fac Gar Fac Low Dat Pro Fac Fac Upp Upp War Total Allies 2 | . . . . . . . . 1 . . 1 . . . . . Largest Group 1 | . . . . . . . . 1 . . 1 . . . . . Highest-Rated Group 94 | . . . . . . . . 10 . . 94 . . . . . Highest-Rated Ally 94 | . . . . . . . . 10 . . 94 . . . . . Total Orders . | . . . . . . . . . . . . . . . . . Ally Attacks 9 | . . . . . . . . . . . 9 . . . . . Total Damage 392 | . . . . . . . . . . . 392 . . . . . Kills 1 | . . . . . . . . . . . 1 . . . . . Allies Corrupted 1 | . . . . . . . . . . . 1 . . . . . Allies Melted . | . . . . . . . . . . . . . . . . . Intel | -11 -10 -10 -10 -9 -8 -7 -7 -7 -7 -7 -6 -6 -5 -5 -5 -5 ------- Run | Scr Mat Min Exi Min Mat Fac Gar Fac Low Dat Pro Fac Fac Upp Upp War Robot Analysis Total . | . . . . . . . . . . . . . . . . . Derelict Logs Recovered 5 | . . 2 . 1 . . . . . . 1 . . . 1 . Drone Launches . | . . . . . . . . . . . . . . . . . Drone Recoveries . | . . . . . . . . . . . . . . . . . Exploration | -11 -10 -10 -10 -9 -8 -7 -7 -7 -7 -7 -6 -6 -5 -5 -5 -5 ------------- Run | Scr Mat Min Exi Min Mat Fac Gar Fac Low Dat Pro Fac Fac Upp Upp War Turns Passed 6241 | 60 264 533 583 145 654 25 562 748 8 31 289 1265 419 228 305 122 Spaces Moved 5379 | 41 130 280 356 80 288 14 243 1165 21 98 538 950 317 291 423 144 Core 48 | 5 . . . . . . 19 . . . . . . . . 24 Treads 1203 | . 74 280 356 80 288 14 111 . . . . . . . . . Legs 1337 | 36 56 . . . . . . . . . 4 935 286 . . 20 Wheels 36 | . . . . . . . 36 . . . . . . . . . Hover . | . . . . . . . . . . . . . . . . . Flight 2755 | . . . . . . . 77 1165 21 98 534 15 31 291 423 100 Fastest Speed 25 | 50 120 160 160 160 160 160 31 31 31 31 31 50 25 25 25 25 Average Speed 82 | 111 142 160 160 160 160 160 109 31 31 31 37 115 105 40 25 40 Slowest Speed 550 | 120 160 160 160 160 180 160 180 31 31 31 200 126 550 118 105 130 Overloaded Moves . | . . . . . . . . . . . . . . . . . Propulsion Burnouts . | . . . . . . . . . . . . . . . . . Robots Hopped 11 | . . . . . . . . 5 . . 3 . . 2 . 1 Cave-ins Triggered . | . . . . . . . . . . . . . . . . . Exploration Rate (%) 37 | 3 25 65 76 32 33 1 44 24 7 75 72 19 8 50 60 46 Regions Visited 16 Branch Regions 9 Pre-discovered Areas 6 | . . 2 . 1 . . . . . 1 1 . . . 1 . Known Exits Taken 9 | . 1 . . . . 1 . 1 . 1 1 1 1 1 1 . Unknown Exits Taken 6 | 1 . 1 1 1 1 . . . 1 . . . . . . . Scrap Searched 9 | . . . . 1 . . . . . . 4 . . 2 2 . Spaces Dug . | . . . . . . . . . . . . . . . . . Terrain Destroyed 90 | . . . . . . . . . . . 16 . . 66 8 . Melee . | . . . . . . . . . . . . . . . . . Projectile . | . . . . . . . . . . . . . . . . . AOE 90 | . . . . . . . . . . . 16 . . 66 8 . Terrain Rammed . | . . . . . . . . . . . . . . . . . Walls Destroyed . | . . . . . . . . . . . . . . . . . Machines Disabled . | . . . . . . . . . . . . . . . . . Actions | -11 -10 -10 -10 -9 -8 -7 -7 -7 -7 -7 -6 -6 -5 -5 -5 -5 --------- Run | Scr Mat Min Exi Min Mat Fac Gar Fac Low Dat Pro Fac Fac Upp Upp War Total 6919 | 52 199 325 371 97 416 16 468 1543 21 97 619 1092 397 383 619 204 Wait 1143 | . 42 16 . 18 69 . 116 363 1 . 72 96 38 81 184 47 Move 5343 | 40 129 279 355 79 287 14 242 1154 20 97 531 949 316 287 422 142 Hop 10 | . . . . . . . . 5 . . 3 . . 1 . 1 Pick Up 62 | 6 6 1 3 . 11 . 4 4 . . . 12 12 . 3 . Fast Attach 64 | 6 4 1 5 . 3 . 15 11 . . 1 9 6 2 1 . Attach 30 | . . . . . 5 2 8 . . . 1 3 1 1 3 6 Detach 16 | . . . 1 . 2 . 2 3 . . 2 2 . 2 2 . Swap 20 | . . 2 1 . 4 . 5 . . . . 2 3 1 . 2 Drop 64 | . 9 3 6 . . . 11 3 . . 3 6 16 1 3 3 Fire 138 | . 9 23 . . 34 . 41 . . . 3 13 5 7 1 2 Melee . | . . . . . . . . . . . . . . . . . Ram . | . . . . . . . . . . . . . . . . . Kick 1 | . . . . . . . . . . . . . . . . 1 Crush 1 | . . . . . 1 . . . . . . . . . . . Escape Stasis 24 | . . . . . . . 24 . . . . . . . . . Rewire 3 | . . . . . . . . . . . 3 . . . . . Trap . | . . . . . . . . . . . . . . . . . Miscellaneous . | . . . . . . . . . . . . . . . . . Route ------- -11/Scrapyard -10/Materials (discovered 2 exits: *Min x2) -10/Mines (discovered 2 exits: [*Mat] / *Exi) -10/Exiles (discovered 2 exits: [*Min x2]) -9/Mines -8/Materials -7/Factory -7/Garrison -7/Factory -7/Lower Caves -7/Data Miner -6/Proximity Caves -6/Factory -5/Factory (discovered 2 exits: Fac / *Upp) -5/Upper Caves -5/Upper Caves (discovered 2 exits: *Fac / *War) -5/Warlord History --------- Turn | Location | Event 18 | -11/Scrapyard | Discovered new exit (range 16) 61 | -11/Scrapyard | Entered Materials 188 | -10/Materials | Identified exit to Mines 303 | -10/Materials | Build established: Mutant 325 | -10/Materials | Entered Mines 327 | -10/Mines | Met a Derelict bent on vengeance 598 | -10/Mines | Discovered new exit (range 12) 622 | -10/Mines | Found the Drone Emporium 695 | -10/Mines | Learned location of Mines (-9) 703 | -10/Mines | Learned location of Storage (-9) 850 | -10/Mines | Deemed a non-threat by the Exiles lab entrance 850 | -10/Mines | Discovered new exit (range 5) 858 | -10/Mines | Entered Exiles 884 | -10/Exiles | Discovered new exit (range 14) 900 | -10/Exiles | Met 8R-AWN 927 | -10/Exiles | Met EX-HEX 972 | -10/Exiles | Met EX-BIN 994 | -10/Exiles | Aligned with FarCom system 996 | -10/Exiles | Given EX-Vault access code 1078 | -10/Exiles | Opened EX-Vault 1091 | -10/Exiles | Found Prototype Device 1091 | -10/Exiles | Identified Trap Reconfigurator 1098 | -10/Exiles | Found Prototype Device 1098 | -10/Exiles | Identified PSU Rigger 1107 | -10/Exiles | Found Prototype Processor 1107 | -10/Exiles | Identified Modified TNC 1154 | -10/Exiles | Warned to stay clear of 0b10 Research branches 1202 | -10/Exiles | Met EX-DEC 1254 | -10/Exiles | Visited The Gauntlet 1429 | -10/Exiles | Discovered new exit (range 10) 1441 | -10/Exiles | Left Exiles lab with Trap Reconfigurator 1441 | -10/Exiles | Entered Mines 1491 | -9/Mines | Learned location of Zion (-6) 1519 | -9/Mines | Discovered new exit (range 10) 1586 | -9/Mines | Entered Materials 1586 | -8/Materials | Evolved 4 slots: Propulsion x2, Utility x2 1880 | -8/Materials | Build established: Hauler-Mutant 2181 | -8/Materials | Repaired Lgt. Angular Momentum Engine 2219 | -8/Materials | Discovered new exit (range 11) 2240 | -8/Materials | Entered Factory 2240 | -7/Factory | Evolved 2 slots: Utility x2 2265 | -7/Factory | Identified exit to Garrison 2265 | -7/Factory | Entered Garrison 2273 | -7/Garrison | Installed Relay Interface Framework 2558 | -7/Garrison | Lost 10 parts (1p4n2u3w) 2689 | -7/Garrison | Spotted B-75 Beast 2689 | -7/Garrison | Spotted B-75 Beast 2740 | -7/Garrison | Triggered checkpoint 2823 | -7/Garrison | Discovered new exit (range 12) 2827 | -7/Garrison | Entered Factory 2897 | -7/Factory | Discovered new exit (range 4) 3149 | -7/Factory | Repaired VTOL Module 3183 | -7/Factory | Repaired Autogun 3216 | -7/Factory | Repaired VTOL Module 3280 | -7/Factory | Repaired Gauss Rifle 3575 | -7/Factory | Identified exit to Lower Caves 3575 | -7/Factory | Entered Lower Caves 3576 | -7/Lower Caves | Encountered a Warlord checkpoint 3581 | -7/Lower Caves | A Derelict revealed a hidden shortcut to meet someone special 3583 | -7/Lower Caves | Entered Data Miner 3583 | -7/Data Miner | Discovered new exit (range 6) 3586 | -7/Data Miner | Identified exit to Proximity Caves 3590 | -7/Data Miner | Met Data Miner 3601 | -7/Data Miner | Learned location of Section 7 (-2) 3601 | -7/Data Miner | Acquired the access code to Warlord's prototype stash 3606 | -7/Data Miner | Received God Mode back door access code from Data Miner 3614 | -7/Data Miner | Entered Proximity Caves 3618 | -6/Proximity Caves | Escorted by Enhanced Grunt 3721 | -6/Proximity Caves | Learned location of Extension (-4) 3899 | -6/Proximity Caves | Discovered new exit (range 8) 3902 | -6/Proximity Caves | Identified exit to Factory 3903 | -6/Proximity Caves | Entered Factory 3903 | -6/Factory | Evolved 2 slots: Propulsion x2 4215 | -6/Factory | Build established: Mutant 4309 | -6/Factory | Fabricated Exp. Flexi-carbon Leg (x1) 4500 | -6/Factory | Fabricated Exp. Flexi-carbon Leg? 4703 | -6/Factory | Local fabrication network quarantined 4953 | -6/Factory | First assault squad dispatched 4970 | -6/Factory | Incoming assault squad redirected 5047 | -6/Factory | Build established: Skirmisher 5139 | -6/Factory | Discovered new exit (range 16) 5154 | -6/Factory | Identified exit to Factory 5168 | -6/Factory | Entered another Factory area 5168 | -5/Factory | Evolved 2 slots: Utility x2 5220 | -5/Factory | Discovered new exit (range 14) 5235 | -5/Factory | Identified exit to Upper Caves 5299 | -5/Factory | Discovered new exit (range 10) 5319 | -5/Factory | Found Imp. Powered Armor 5321 | -5/Factory | Found Imp. Powered Armor 5481 | -5/Factory | Build established: Hacker-Skirmisher 5587 | -5/Factory | Entered Upper Caves 5626 | -5/Upper Caves | Lost 3 parts (1n2u) 5805 | -5/Upper Caves | Spotted B-75 Beast 5813 | -5/Upper Caves | Discovered new exit (range 8) 5815 | -5/Upper Caves | Identified exit to Upper Caves 5815 | -5/Upper Caves | Entered another Upper Caves area 5817 | -5/Upper Caves | Attracted the attention of an 0b10 checkpoint 5819 | -5/Upper Caves | Discovered new exit (range 14) 5822 | -5/Upper Caves | Identified exit to Factory 5951 | -5/Upper Caves | Spotted B-75 Beast 5981 | -5/Upper Caves | Learned location of Warlord (-5) 6067 | -5/Upper Caves | Acquired the password to a Derelict Tinkerer's latest research 6081 | -5/Upper Caves | Found Prototype Special Weapon 6099 | -5/Upper Caves | Discovered new exit (range 12) 6107 | -5/Upper Caves | Identified exit to Warlord 6120 | -5/Upper Caves | Entered Warlord 6154 | -5/Warlord | RIF detected upon attempting to enter Warlord's base 6154 | -5/Warlord | Attacked by Warlord forces 6174 | -5/Warlord | Spotted D1-HAD(B) 6174 | -5/Warlord | Spotted B9-GX5(B) 6194 | -5/Warlord | Identified Molecular Deconstructor 6228 | -5/Warlord | Core integrity fell below 50% 6236 | -5/Warlord | System corruption reached 10% 6238 | -5/Warlord | Core integrity fell below 20% 6241 | -5/Warlord | Spotted RN-K1E(g) 6242 | -5/Warlord | Destroyed by MZ-NA4(g) with Particle Gun Last Messages --------------- 06205_ Door malfunctions. 06209_ Mic. Fission Core destroyed. 06209_ Knocked back. 06215_ Critical hit. 06215_ Adv. Cooling System destroyed. 06221_ Slammed into DM-6W9(p). 06222_ System corrupted: Heat flow error (+151). 06224_ Dropped Hcp. Storage Unit. 06224_ Dropped Lgt. Angular Momentum Engine. 06225_ Dropped Flak Gun. 06227_ Knocked back. 06228_ Nuclear Pulse Thruster destroyed. 06228_ Exp. Flexi-carbon Leg destroyed. 06230_ Knocked back. 06232_ Imp. Signal Interpreter destroyed. 06235_ System Shield destroyed. 06235_ Imp. Hacking Suite destroyed. 06235_ System corrupted by crushing effect (+5). 06235_ System corrupted by crushing effect (+4). 06240_ HV Slug penetrates Wall. Map ----- +----------------------------------------------------+ | ?????????????????????????????????????????????????? | | ?????????????????????????????????????????????????? | | ?????????????????????????????????????????????????? | | ?????????????????????????????????????????????????? | | ?????????????????????????????????????????????????? | | ?????????????????????????????????????????????????? | | ?????????????????????????????????????????????????? | | ?????????????????????????? ?????????????????????? | | ???????????????????????? ?????????????????????? | | ????????????????????????# ?????????????????????? | | ???????????????????????## ##???????????????????? | | ???????????????????????# #???????????????????? | | ???????????????????? ??? M #???????????????????? | | ???????????????????? ? #???????????????????? | | ???????????????????"" """ M #?######????????????? | | ??????????????????""" """ #?# ??????????#?? | | ???????????????? """ """M #?# ????????????? | | ????????????????? b #?# ?????????????? | | ?????????????????? M #?# ??????????????? | | ???????????????#? """ """ #?# #?????????????? | | ???????????????# """ """ ####/##########?????? | | ???????????????# """ """ gb #?????? | | ???????????????# g b p #?????? | | ?????????? g #M l #########/## #???#?? | | ?????????? Mg ## # #?????? | | ?????????????? # @ ## """ """ # #?????? | | ???????????????# ############ """ """ # #?????? | | ???????????????# ?????????????# """ """ # #????## | | ??????????????????????????????? """ """ # ##?"??? | | ????????????????????????????????""" """ # #???? | | ???????????????????????????????? # ##??X ? | | ????????????????????????????????? ???? # #?#???? | | ???????????????????????????????????????## #?????? | | ????????????????????????????????????????# #???## | | ????????????????????????????????????????# ######+ | | ????????????????????????????????????????# | | ????????????????????????????????????????# ] | | ????????????????????????????????????????#[!* | | ????????????????????????????????###########+## | | ????????????????????????????????# ## ^ | | ????????????????????????????????# = ! ## | | ????????????????????????????????# =/! ## | | ????????????????????????????????# = ! ## | | ????????????????????????????????# + | | ????????????????????????????????###############/## | | ?????????????????????????????????????????????# ## | | ????????????????????????????????????????????"" !# | | ???????????????????????????????????????????""X !# | | ???????????????????????????????????????#??#"" !# | | ??????????????????????????????????????????#!! X "# | +----------------------------------------------------+ Best States ------------- Heat Dissipation 71 Energy Generation 18 Energy Capacity 290 Matter Stores 300 Matter Capacity 350 Sight Range 16 Robot Scan Range 16 Terrain Scan Range 24 Terrain Scan Density 210 Jamming Range 8 Armor Coverage 450 Resistance: KI 30 Evasion (%) 65 Targeting Accuracy 5 Target Analysis 5 Core Analysis 6 Recoil Reduction 4 Offensive Hacking 12 Defensive Hacking 10 Item Schematics ----------------- Combat Drone Bay | -7/Data Miner | Free Lgt. Regenerative Plating | -7/Data Miner | Free Exp. Flexi-carbon Leg | -7/Data Miner | Free Cmb. Gravmag System | -7/Data Miner | Free Exp. Terrain Scan Processor | -7/Data Miner | Free Mni. Smartbomb Launcher | -7/Data Miner | Free Kinetic Spear | -7/Data Miner | Free Robot Schematics ------------------ S-27 Virus | -7/Data Miner | Free G-50 Soldier | -7/Data Miner | Free L-41 Fighter | -7/Data Miner | Free X-72 Disruptor | -7/Data Miner | Free P-70 Sage | -7/Data Miner | Free I-36 Angel | -7/Data Miner | Free I-47 Archangel | -7/Data Miner | Free Fabricated ------------ Exp. Flexi-carbon Leg | x1 | -6/Factory Exp. Flexi-carbon Leg | x1 | -6/Factory Alien Tech Used ----------------- None Achievements -------------- Significant Disruption Challenges ------------ None Game ------ Seed CoordinationLinearSlayer Manual? 0 Play Time 01:22:24 Cumulative 39.0 hours Start 2020.11.11 @ 23:06:05 End 2020.11.12 @ 23:41:43 Sessions 3 Manual Loads 0 Difficulty Rogue Special Mode Halloween2020/ForbiddenLore Game No. 49 Rogue 49 Adventurer 0 Explorer 0 Win Type - Total 0 Types 0/0/0/0/0/0/0/0/0 Lore% 46 Gallery% 40 Achievement% 32 Wizard Run 0 Options --------- ASCII 0 Keyboard 1 Movement Vi Keybinds 0 Fullscreen 2 Font 24/Proggy Map View 76x50 Tactical HUD 1 Map Filters NONE Filters NONE Steam 1 RUN: 58d27fcb-cfe6-496b-b518-d6aaa8a02446